[Event "26th Abu Dhabi Master 2019"]
[Site "Abu Dhabi"]
[Date "2019.08.08"]
[Round "7.46"]
[White "Sankalp Gupta"]
[Black "Deshpande, Aniruddha"]
[Result "0-1"]
[ECO "B11"]
[WhiteElo "2416"]
[BlackElo "2234"]
[Annotator "NA"]
[PlyCount "88"]
[EventDate "2019.08.02"]
[EventType "swiss"]
[EventCountry "UAE"]
[SourceTitle "playchess.com"]
[Source "ChessBase"]
[SourceQuality "1"]
[TimeControl "5400+30"]

1. e4 {[%emt 0:00:48]} c6 {[%emt 0:00:00]} 2. Nc3 {[%emt 0:00:11]} d5 {[%emt 0:00:00]} 3. Nf3 {[%emt 0:00:02]} Bg4 {[%emt 0:00:34]} 4. Be2 {[%emt 0:00:04]} e6 {[%emt 0:00:51]} 5. d4 {[%emt 0:00:09]} Nf6 {[%emt 0:08:05]} 6. h3 {[%emt 0:00:26]} Bh5 {[%emt 0:07:14]} 7. e5 {[%emt 0:00:02]} Nfd7 {[%emt 0:01:03]} 8. g4 {[%emt 0:02:13]} Bg6 {[%emt 0:00:07]} 9. h4 {[%emt 0:00:03]} c5 {[%emt 0:04:44]} 10. dxc5 {[%emt 0:14:27]} Nc6 {[%emt 0:01:52]} 11. Be3 {[%emt 0:20:21]} h5 {[%emt 0:02:14]} 12. gxh5 {[%emt 0:07:23]} Bxh5 {[%emt 0:00:29]} 13. Nd4 {[%emt 0:04:14]} Bxe2 {[%emt 0:09:18]} 14. Qxe2 {[%emt 0:01:20]} Bxc5 {[%emt 0:00:12]} 15. O-O-O {[%emt 0:01:30]} Bxd4 {[%emt 0:04:48]} 16. Bxd4 {[%emt 0:01:18]} Rxh4 {[%emt 0:02:00]} 17. Rxh4 {[%emt 0:04:05]} Qxh4 {[%emt 0:01:21]} 18. Nb5 {[%emt 0:00:07]} Kf8 {[%emt 0:01:25]} 19. Qe3 g6 {[%emt 0:19:46]} 20. Nd6 {[%emt 0:11:20]} b6 {[%emt 0:01:47]} 21. Bc3 {[%emt 0:08:23]} Ke7 {[%emt 0:06:28]} 22. f4 {[%emt 0:01:52]} Rh8 {[%emt 0:00:57]} 23. Be1 {[%emt 0:02:13]} Qg4 {[%emt 0:00:58]} 24. Bg3 {[%emt 0:10:18]} Rh3 {[%emt 0:02:14]} 25. Rg1 {[%emt 0:00:03]} Nc5 {[%emt 0:00:44]} 26. a4 {[%emt 0:01:38]} Kf8 {[%emt 0:01:22]} 27. a5 {[%emt 0:00:55]} d4 {[%emt 0:08:49]} 28. Qf2 {[%emt 0:02:29]} Nb4 {[%emt 0:01:56]} 29. Kb1 {[%emt 0:02:40]} Nd5 {[%emt 0:00:36]} 30. axb6 {[%emt 0:03:34]} axb6 {[%emt 0:00:02]} 31. Qg2 {[%emt 0:00:08]} Kg8 {[%emt 0:03:57]} 32. Ka1 {[%emt 0:00:25]} d3 {[%emt 0:01:23]} 33. cxd3 {[%emt 0:00:47]} Nxd3 {[%emt 0:01:13]} 34. Ne4 {[%emt 0:00:57]} N3xf4 {[%emt 0:01:25]} 35. Qc2 {[%emt 0:00:33]} Kg7 {[%emt 0:00:29]} 36. Nf6 {[%emt 0:00:18]} Qe2 {[%emt 0:01:28]} 37. Qc8 {[%emt 0:00:22]} Rh8 {[%emt 0:01:28]} 38. Ne8+ {[%emt 0:00:10]} Rxe8 {[%emt 0:02:23]} 39. Qxe8 {[%emt 0:00:02]} Nd3 {[%emt 0:00:26]} 40. Rb1 {[%emt 0:00:41]} N5b4 {[%emt 0:00:16]} 41. Qd8 {[%emt 0:00:44]} Nc2+ {[%emt 0:02:04]} 42. Ka2 {[%emt 0:00:01]} Ndb4+ {[%emt 0:00:24]} 43. Kb3 {[%emt 0:00:01]} Qf3+ {[%emt 0:00:15]} 44. Ka4 {[%emt 0:00:13]} b5+ {[%emt 0:00:32]} 0-1

[Event "26th Abu Dhabi Master 2019"]
[Site "Abu Dhabi"]
[Date "2019.08.08"]
[Round "7.47"]
[White "Raja Rithvik R"]
[Black "Srihari L R"]
[Result "1/2-1/2"]
[ECO "A10"]
[WhiteElo "2357"]
[BlackElo "2227"]
[Annotator "NA"]
[PlyCount "35"]
[EventDate "2019.08.02"]
[EventType "swiss"]
[EventCountry "UAE"]
[SourceTitle "playchess.com"]
[Source "ChessBase"]
[SourceQuality "1"]
[TimeControl "5400+30"]

1. c4 {[%emt 0:00:00]} d6 {[%emt 0:01:19]} 2. d4 {[%emt 0:00:04]} e5 {[%emt 0:00:07]} 3. Nc3 {[%emt 0:00:04]} exd4 {[%emt 0:01:23]} 4. Qxd4 {[%emt 0:00:06]} Nc6 {[%emt 0:00:06]} 5. Qd2 {[%emt 0:00:03]} Nf6 {[%emt 0:00:26]} 6. b3 {[%emt 0:00:25]} a5 {[%emt 0:00:24]} 7. Bb2 {[%emt 0:00:12]} a4 {[%emt 0:00:06]} 8. Nd5 {[%emt 0:08:02]} Be7 {[%emt 0:22:05]} 9. Nf3 {[%emt 0:19:08]} Be6 {[%emt 0:08:58]} 10. e3 {[%emt 0:16:32]} Ne5 {[%emt 0:28:47]} 11. Nxe7 {[%emt 0:14:30]} Qxe7 {[%emt 0:07:56]} 12. Be2 {[%emt 0:02:26]} a3 {[%emt 0:01:11]} 13. Bd4 {[%emt 0:08:00]} Ne4 {[%emt 0:01:37]} 14. Qc1 {[%emt 0:02:31]} c5 {[%emt 0:06:31]} 15. Bc3 {[%emt 0:09:03]} Qf6 {[%emt 0:02:41]} 16. Bxe5 {[%emt 0:00:02]} dxe5 {[%emt 0:00:06]} 17. O-O {[%emt 0:00:09]} Bg4 {[%emt 0:04:50]} 18. h3 {[%emt 0:09:09]} 1/2-1/2

[Event "26th Abu Dhabi Master 2019"]
[Site "Abu Dhabi"]
[Date "2019.08.08"]
[Round "7.48"]
[White "Divya Deshmukh"]
[Black "Pujari, Rucha"]
[Result "1-0"]
[ECO "C95"]
[WhiteElo "2373"]
[BlackElo "2268"]
[Annotator "NA"]
[PlyCount "69"]
[EventDate "2019.08.02"]
[EventType "swiss"]
[EventCountry "UAE"]
[SourceTitle "playchess.com"]
[Source "ChessBase"]
[SourceQuality "1"]
[TimeControl "5400+30"]

1. e4 {[%emt 0:00:00]} e5 {[%emt 0:01:36]} 2. Nf3 {[%emt 0:00:00]} Nc6 {[%emt 0:00:23]} 3. Bb5 {[%emt 0:00:00]} a6 {[%emt 0:00:08]} 4. Ba4 {[%emt 0:00:00]} Nf6 {[%emt 0:00:06]} 5. O-O {[%emt 0:00:00]} Be7 {[%emt 0:00:17]} 6. Re1 {[%emt 0:00:03]} b5 {[%emt 0:00:05]} 7. Bb3 {[%emt 0:00:03]} O-O {[%emt 0:00:19]} 8. h3 {[%emt 0:00:04]} d6 {[%emt 0:01:12]} 9. c3 {[%emt 0:00:05]} Nb8 {[%emt 0:00:09]} 10. d4 {[%emt 0:00:04]} Nbd7 {[%emt 0:00:06]} 11. c4 {[%emt 0:00:04]} c6 {[%emt 0:00:20]} 12. Nc3 {[%emt 0:00:05]} b4 {[%emt 0:00:12]} 13. Ne2 {[%emt 0:00:05]} Nxe4 {[%emt 0:07:54]} 14. Qc2 {[%emt 0:00:05]} f5 {[%emt 0:04:13]} 15. c5+ {[%emt 0:00:05]} d5 {[%emt 0:01:27]} 16. Be3 {[%emt 0:00:07]} Bf6 {[%emt 0:09:14]} 17. dxe5 {[%emt 0:10:59]} Nxe5 {[%emt 0:01:04]} 18. Nfd4 {[%emt 0:00:45]} a5 {[%emt 0:22:46]} 19. Nf4 {[%emt 0:09:55]} Qd7 {[%emt 0:11:38]} 20. Rad1 {[%emt 0:22:24]} a4 {[%emt 0:10:12]} 21. Bxa4 {[%emt 0:02:46]} Nxc5 {[%emt 0:04:38]} 22. Bxc6 {[%emt 0:14:35]} Nxc6 {[%emt 0:00:42]} 23. Nxc6 {[%emt 0:06:43]} Qxc6 {[%emt 0:02:21]} 24. Qxc5 {[%emt 0:01:13]} Bb7 {[%emt 0:12:47]} 25. Nxd5 {[%emt 0:00:40]} f4 {[%emt 0:01:17]} 26. Qxc6 {[%emt 0:01:46]} Bxc6 {[%emt 0:00:02]} 27. Bc5 {[%emt 0:00:08]} Rfb8 {[%emt 0:02:55]} 28. Nxf6+ {[%emt 0:02:52]} gxf6 {[%emt 0:00:03]} 29. Rd6 {[%emt 0:00:24]} Bb7 {[%emt 0:05:00]} 30. Rxf6 {[%emt 0:00:33]} f3 {[%emt 0:00:19]} 31. gxf3 {[%emt 0:00:17]} Rxa2 {[%emt 0:00:05]} 32. Kh2 {[%emt 0:00:27]} Rd8 {[%emt 0:01:37]} 33. Rg1+ {[%emt 0:00:09]} Kh8 {[%emt 0:00:02]} 34. Rf8+ {[%emt 0:00:02]} Rxf8 {[%emt 0:00:15]} 35. Bd4+ {[%emt 0:00:02]} 1-0

[Event "26th Abu Dhabi Master 2019"]
[Site "Abu Dhabi"]
[Date "2019.08.08"]
[Round "7.49"]
[White "Mullick, Raahil"]
[Black "Asaka, Samuel"]
[Result "1-0"]
[ECO "B12"]
[WhiteElo "2211"]
[BlackElo "2201"]
[Annotator "NA"]
[PlyCount "66"]
[EventDate "2019.08.02"]
[EventType "swiss"]
[EventCountry "UAE"]
[SourceTitle "playchess.com"]
[Source "ChessBase"]
[SourceQuality "1"]
[TimeControl "5400+30"]

1. e4 c6 2. d4 d5 3. e5 Bf5 4. Nc3 e6 5. g4 Bg6 6. Nge2 c5 7. h4 h5 8. Nf4 Bh7 9. Nxh5 Nc6 10. Bb5 cxd4 11. Qxd4 Nge7 12. Bg5 a6 13. Bxc6+ Nxc6 14. Qd2 Qc7 15. O-O d4 16. Ne2 d3 17. cxd3 Nxe5 18. f3 Nxd3 19. Kg2 Bb4 20. Qe3 Bc5 21. Nxg7+ Kf8 22. Nd4 Bxd4 23. Qxd4 e5 24. Bh6 Qc2+ 25. Rf2 Qxf2+ 26. Qxf2 Nxf2 27. Nh5+ Ke7 28. Kxf2 Rhc8 29. Re1 Rc2+ 30. Kg3 Rxb2 31. Rxe5+ Kd7 32. Nf6+ Kd6 33. Bf4 Rb5 1-0

[Event "26th Abu Dhabi Master 2019"]
[Site "Abu Dhabi"]
[Date "2019.08.08"]
[Round "7.50"]
[White "Al Hosani, Omran"]
[Black "Pranav Anand"]
[Result "1/2-1/2"]
[ECO "E34"]
[WhiteElo "2135"]
[BlackElo "2347"]
[Annotator "NA"]
[PlyCount "92"]
[EventDate "2019.08.02"]
[EventType "swiss"]
[EventCountry "UAE"]
[SourceTitle "playchess.com"]
[Source "ChessBase"]
[SourceQuality "1"]
[TimeControl "5400+30"]

1. d4 {[%emt 0:00:00]} Nf6 {[%emt 0:00:00]} 2. c4 {[%emt 0:00:15]} e6 {[%emt 0:00:00]} 3. Nc3 {[%emt 0:00:07]} Bb4 {[%emt 0:00:01]} 4. Qc2 {[%emt 0:00:04]} d5 {[%emt 0:00:07]} 5. cxd5 {[%emt 0:00:06]} Qxd5 {[%emt 0:00:06]} 6. Nf3 {[%emt 0:00:08]} Qf5 {[%emt 0:00:06]} 7. Qb3 {[%emt 0:00:09]} Nc6 {[%emt 0:01:17]} 8. Bd2 {[%emt 0:00:45]} O-O {[%emt 0:02:02]} 9. h3 {[%emt 0:03:31]} a5 {[%emt 0:07:29]} 10. a3 {[%emt 0:01:11]} a4 {[%emt 0:01:49]} 11. Qc4 {[%emt 0:00:12]} Bxc3 {[%emt 0:01:26]} 12. Bxc3 {[%emt 0:00:54]} Bd7 {[%emt 0:06:13]} 13. e3 {[%emt 0:09:32]} Nd5 {[%emt 0:15:31]} 14. Bd3 {[%emt 0:01:40]} Qf6 {[%emt 0:01:35]} 15. Bd2 {[%emt 0:00:02]} Rfc8 {[%emt 0:12:26]} 16. Qc2 {[%emt 0:01:03]} h6 {[%emt 0:03:54]} 17. O-O {[%emt 0:00:42]} Na5 {[%emt 0:07:29]} 18. e4 {[%emt 0:03:14]} Nb6 {[%emt 0:00:06]} 19. Bc3 {[%emt 0:00:19]} Nb3 {[%emt 0:01:09]} 20. Rad1 {[%emt 0:00:09]} Qe7 {[%emt 0:00:58]} 21. Nd2 {[%emt 0:01:33]} c5 {[%emt 0:03:43]} 22. Nxb3 {[%emt 0:01:06]} axb3 {[%emt 0:01:18]} 23. Qd2 {[%emt 0:01:56]} Na4 {[%emt 0:09:22]} 24. Rc1 {[%emt 0:10:54]} Nxc3 {[%emt 0:04:57]} 25. Qxc3 {[%emt 0:00:03]} c4 {[%emt 0:00:09]} 26. Bb1 {[%emt 0:00:18]} b5 {[%emt 0:00:27]} 27. Rfd1 {[%emt 0:02:32]} Qd6 {[%emt 0:02:46]} 28. Qe3 {[%emt 0:01:42]} Bc6 {[%emt 0:00:35]} 29. d5 {[%emt 0:01:34]} exd5 {[%emt 0:00:10]} 30. exd5 {[%emt 0:00:10]} Bd7 {[%emt 0:00:22]} 31. Qe4 {[%emt 0:00:35]} f5 {[%emt 0:01:54]} 32. Qd4 {[%emt 0:00:16]} Re8 {[%emt 0:00:38]} 33. Re1 {[%emt 0:00:07]} Kh8 {[%emt 0:01:07]} 34. f4 {[%emt 0:00:26]} Rxe1+ {[%emt 0:05:16]} 35. Rxe1 {[%emt 0:00:01]} Rc8 {[%emt 0:01:11]} 36. Kh2 {[%emt 0:02:21]} Qc5 {[%emt 0:06:27]} 37. Qd2 {[%emt 0:06:37]} Rf8 {[%emt 0:02:32]} 38. Re5 {[%emt 0:03:22]} Rf6 {[%emt 0:00:11]} 39. g4 {[%emt 0:03:24]} fxg4 {[%emt 0:01:17]} 40. hxg4 {[%emt 0:00:02]} Qd6 {[%emt 0:00:16]} 41. Qe3 {[%emt 0:00:51]} g6 {[%emt 0:01:16]} 42. Kg3 {[%emt 0:02:00]} Kg8 {[%emt 0:00:17]} 43. Qd4 {[%emt 0:07:03]} Kh7 {[%emt 0:00:36]} 44. g5 hxg5 45. Rxg5 Bf5 46. Be4 Bd7 1/2-1/2

[Event "26th Abu Dhabi Master 2019"]
[Site "Abu Dhabi"]
[Date "2019.08.08"]
[Round "7.51"]
[White "Nandhidhaa, P V"]
[Black "Priyanka, K."]
[Result "1-0"]
[ECO "B90"]
[WhiteElo "2259"]
[BlackElo "2201"]
[Annotator "NA"]
[PlyCount "131"]
[EventDate "2019.08.02"]
[EventType "swiss"]
[EventCountry "UAE"]
[SourceTitle "playchess.com"]
[Source "ChessBase"]
[SourceQuality "1"]
[TimeControl "5400+30"]

1. e4 c5 2. Nf3 d6 3. d4 cxd4 4. Nxd4 Nf6 5. Nc3 a6 6. Nb3 Nc6 7. Be3 e6 8. g4 b5 9. a3 Bb7 10. g5 Nd7 11. f4 Nb6 12. Qd2 Rc8 13. O-O-O Na4 14. Nxa4 bxa4 15. Nd4 Na5 16. Qb4 Bxe4 17. Qxa4+ Ke7 18. Rg1 g6 19. Bg2 Bxg2 20. Rxg2 Bg7 21. Bd2 Nc4 22. Bc3 Qd7 23. Nc6+ Qxc6 24. Qxc6 Rxc6 25. Bxg7 Rhc8 26. Rg3 Nb6 27. c3 Rc4 28. Bf6+ Kd7 29. Rh3 Nd5 30. Rxh7 Rf8 31. Bg7 Rfc8 32. Bd4 Ke7 33. f5 gxf5 34. g6 Rf8 35. g7 Rg8 36. b3 Rcc8 37. c4 Nf4 38. Be3 Ng6 39. h4 Ne5 40. Bf4 f6 41. Bxe5 fxe5 42. Kd2 d5 43. Rg1 d4 44. Rh6 Kf7 45. Rhg6 Rge8 46. h5 e4 47. R6g5 Kg8 48. h6 Kh7 49. c5 Rg8 50. b4 f4 51. Re5 e3+ 52. Ke2 Kxh6 53. Rxe6+ Kh7 54. Re4 Rcd8 55. Rxf4 d3+ 56. Kxe3 Rge8+ 57. Re4 Rxe4+ 58. Kxe4 d2 59. Rd1 Kxg7 60. Ke3 Rh8 61. Rxd2 Rh3+ 62. Kd4 Rxa3 63. c6 Rh3 64. c7 Rh8 65. Kc5 Rc8 66. Kc6 1-0

[Event "26th Abu Dhabi Master 2019"]
[Site "Abu Dhabi"]
[Date "2019.08.08"]
[Round "7.52"]
[White "Zhang, Xiaowen"]
[Black "Adnan, Habib"]
[Result "1/2-1/2"]
[ECO "C06"]
[WhiteElo "2318"]
[BlackElo "2197"]
[Annotator "NA"]
[PlyCount "165"]
[EventDate "2019.08.02"]
[EventType "swiss"]
[EventCountry "UAE"]
[SourceTitle "playchess.com"]
[Source "ChessBase"]
[SourceQuality "1"]
[TimeControl "5400+30"]

1. e4 e6 2. d4 d5 3. Nd2 Nf6 4. e5 Nfd7 5. Bd3 c5 6. c3 Nc6 7. Ne2 cxd4 8. cxd4 f6 9. exf6 Nxf6 10. Nf3 Bd6 11. O-O Qc7 12. Bg5 O-O 13. Rc1 a6 14. Ng3 h6 15. Bd2 g5 16. Re1 Qg7 17. Bc3 Bxg3 18. hxg3 Ng4 19. Rc2 Bd7 20. Nh2 Nxh2 21. Kxh2 Rf6 22. Rce2 Raf8 23. f3 h5 24. Re3 g4 25. f4 Rh6 26. Re5 Nxe5 27. Rxe5 Qf6 28. Bb4 Rf7 29. Bd6 Rg7 30. Rg5 Rxg5 31. fxg5 Qxg5 32. Bf4 Qg7 33. Be5 Rf6 34. Qb3 Bc6 35. Qb4 Qf8 36. Qd2 Qh6 37. Qe2 Rf7 38. Bd6 Qf6 39. Bc2 Bb5 40. Qe3 Rg7 41. Be5 Qg5 42. Qc3 Bc6 43. Bf4 Qe7 44. Qe1 Rf7 45. Qe5 Rxf4 46. gxf4 Qh4+ 47. Kg1 Bd7 48. f5 Qg5 49. Qb8+ Kf7 50. Qd6 Qe7 51. fxe6+ Qxe6 52. Qc7 Qc6 53. Qd8 Qc8 54. Qxc8 Bxc8 55. g3 Kf6 56. Bb3 Be6 57. Kf2 Kg5 58. a3 Kf5 59. Bc2+ Kg5 60. Bb3 b6 61. Ba2 a5 62. Bb3 h4 63. Kg2 h3+ 64. Kh2 b5 65. Kg1 Kf6 66. Bd1 a4 67. Be2 Bd7 68. Kh2 Ke7 69. Kg1 Kd6 70. Kh2 Kc7 71. Kg1 Kb6 72. Kh2 Ka5 73. Kg1 b4 74. Kh2 bxa3 75. bxa3 Kb6 76. Bd1 Kc7 77. Kg1 Kd6 78. Kh2 Ke7 79. Kg1 Kf6 80. Kh2 Kf5 81. Bc2+ Kg5 82. Kg1 Bb5 83. Kh2 1/2-1/2

[Event "26th Abu Dhabi Master 2019"]
[Site "Abu Dhabi"]
[Date "2019.08.08"]
[Round "7.53"]
[White "Pranav, V."]
[Black "Utsab Chatterjee"]
[Result "1-0"]
[ECO "B52"]
[WhiteElo "2316"]
[BlackElo "2150"]
[Annotator "NA"]
[PlyCount "89"]
[EventDate "2019.08.02"]
[EventType "swiss"]
[EventCountry "UAE"]
[SourceTitle "playchess.com"]
[Source "ChessBase"]
[SourceQuality "1"]
[TimeControl "5400+30"]

1. e4 {[%emt 0:00:00]} c5 {[%emt 0:00:07]} 2. Nf3 {[%emt 0:00:00]} d6 {[%emt 0:00:42]} 3. Bb5+ {[%emt 0:00:00]} Bd7 {[%emt 0:00:39]} 4. Bxd7+ {[%emt 0:00:04]} Qxd7 {[%emt 0:00:15]} 5. O-O {[%emt 0:00:25]} Nc6 {[%emt 0:00:23]} 6. c3 {[%emt 0:02:06]} Nf6 {[%emt 0:03:06]} 7. Qe2 {[%emt 0:01:44]} e6 {[%emt 0:03:41]} 8. Rd1 {[%emt 0:00:43]} Ne5 {[%emt 0:03:31]} 9. Ne1 {[%emt 0:05:22]} c4 {[%emt 0:01:22]} 10. d4 {[%emt 0:07:19]} cxd3 {[%emt 0:01:38]} 11. Nxd3 {[%emt 0:00:02]} Nxd3 {[%emt 0:00:55]} 12. Rxd3 {[%emt 0:00:02]} Qc6 {[%emt 0:00:16]} 13. Nd2 {[%emt 0:00:20]} Be7 {[%emt 0:00:45]} 14. c4 {[%emt 0:05:46]} Nd7 {[%emt 0:07:53]} 15. b3 {[%emt 0:11:05]} Nc5 {[%emt 0:07:12]} 16. Rh3 {[%emt 0:00:20]} Bf6 {[%emt 0:08:59]} 17. Rb1 {[%emt 0:00:07]} Bg5 {[%emt 0:10:57]} 18. Bb2 {[%emt 0:09:32]} e5 {[%emt 0:03:10]} 19. Nf3 {[%emt 0:02:19]} Bf6 {[%emt 0:02:05]} 20. Re1 {[%emt 0:03:32]} Ne6 {[%emt 0:00:28]} 21. Bc1 {[%emt 0:01:46]} h5 {[%emt 0:01:12]} 22. Rd1 {[%emt 0:05:44]} O-O-O {[%emt 0:03:00]} 23. Rg3 {[%emt 0:02:07]} h4 {[%emt 0:11:03]} 24. Rh3 {[%emt 0:01:45]} Kb8 {[%emt 0:01:26]} 25. Ne1 {[%emt 0:04:22]} Bg5 {[%emt 0:05:03]} 26. Bxg5 {[%emt 0:00:47]} Nxg5 {[%emt 0:00:07]} 27. Re3 {[%emt 0:00:04]} h3 {[%emt 0:03:06]} 28. Qg4 {[%emt 0:01:59]} Ne6 {[%emt 0:00:10]} 29. Nd3 {[%emt 0:15:42]} hxg2 {[%emt 0:05:16]} 30. Nb4 {[%emt 0:01:24]} Qc5 {[%emt 0:00:45]} 31. Nd5 {[%emt 0:01:12]} Rh6 {[%emt 0:00:39]} 32. Qf5 {[%emt 0:01:57]} Rdh8 {[%emt 0:03:04]} 33. Rdd3 {[%emt 0:04:38]} Nd4 {[%emt 0:03:49]} 34. Qg4 {[%emt 0:01:11]} Qa3 {[%emt 0:02:36]} 35. Rh3 {[%emt 0:03:39]} Qxa2 {[%emt 0:03:33]} 36. Kxg2 {[%emt 0:03:09]} Qc2 {[%emt 0:02:41]} 37. Rxh6 {[%emt 0:00:54]} Rxh6 {[%emt 0:00:13]} 38. Rg3 {[%emt 0:00:47]} a6 {[%emt 0:01:11]} 39. Ne3 {[%emt 0:00:51]} Qb1 {[%emt 0:00:24]} 40. Nd5 {[%emt 0:01:39]} Nc2 {[%emt 0:01:50]} 41. h3 {[%emt 0:00:38]} Qe1 {[%emt 0:00:41]} 42. Qxg7 {[%emt 0:01:13]} Qxe4+ {[%emt 0:00:18]} 43. Kh2 {[%emt 0:00:01]} Rg6 {[%emt 0:00:41]} 44. Qf8+ {[%emt 0:00:05]} Ka7 {[%emt 0:00:04]} 45. Ne7 {[%emt 0:00:09]} 1-0

[Event "26th Abu Dhabi Master 2019"]
[Site "Abu Dhabi"]
[Date "2019.08.08"]
[Round "7.54"]
[White "Tashkhodzhaev, Akram"]
[Black "Gajwa Ankit"]
[Result "1/2-1/2"]
[ECO "B54"]
[WhiteElo "2123"]
[BlackElo "2302"]
[Annotator "NA"]
[PlyCount "96"]
[EventDate "2019.08.02"]
[EventType "swiss"]
[EventCountry "UAE"]
[SourceTitle "playchess.com"]
[Source "ChessBase"]
[SourceQuality "1"]
[TimeControl "5400+30"]

1. e4 c5 2. Nf3 d6 3. d4 cxd4 4. Nxd4 Nf6 5. f3 e5 6. Nb3 Be6 7. c4 a5 8. Be3 Be7 9. Be2 a4 10. N3d2 Qa5 11. O-O Nbd7 12. Na3 O-O 13. Rc1 Bd8 14. Nb5 Bb6 15. Bf2 Rfd8 16. Nb1 Rac8 17. Qd2 Bxf2+ 18. Kxf2 Qb6+ 19. Qe3 Rc5 20. N1a3 d5 21. cxd5 Bxd5 22. Rfd1 Rxc1 23. Rxc1 Bxa2 24. Rc7 Qxe3+ 25. Kxe3 b6 26. Ra7 Bb3 27. Nc4 g6 28. Rb7 Bxc4 29. Bxc4 Rc8 30. Bxf7+ Kf8 31. Be6 Rc5 32. Na3 Ke7 33. Bxd7 Nxd7 34. Ra7 b5 35. Rb7 Kd6 36. Nxb5+ Kc6 37. Rc7+ Kxb5 38. Rxd7 Rc2 39. Rd2 Rxd2 40. Kxd2 Kc4 41. Kc2 g5 42. h4 gxh4 43. Kd2 Kb3 {[%emt 1:51:30]} 44. Kc1 Kc4 45. Kc2 Kd4 46. Kd2 Kc4 47. Kc2 Kd4 48. Kd2 Kc4 1/2-1/2

[Event "26th Abu Dhabi Master 2019"]
[Site "Abu Dhabi"]
[Date "2019.08.08"]
[Round "7.55"]
[White "Pranesh M"]
[Black "Chitlange Sakshi"]
[Result "1-0"]
[ECO "B15"]
[WhiteElo "2343"]
[BlackElo "2168"]
[Annotator "NA"]
[PlyCount "157"]
[EventDate "2019.08.02"]
[EventType "swiss"]
[EventCountry "UAE"]
[SourceTitle "playchess.com"]
[Source "ChessBase"]
[SourceQuality "1"]
[TimeControl "5400+30"]

1. e4 {[%emt 0:00:00]} c6 {[%emt 0:00:00]} 2. d4 {[%emt 0:00:00]} d5 {[%emt 0:00:00]} 3. Nc3 {[%emt 0:00:00]} dxe4 {[%emt 0:00:00]} 4. Nxe4 {[%emt 0:00:00]} Nf6 {[%emt 0:00:02]} 5. Nxf6+ {[%emt 0:00:00]} exf6 {[%emt 0:00:04]} 6. c3 {[%emt 0:00:00]} Bd6 {[%emt 0:00:18]} 7. Bd3 {[%emt 0:00:00]} O-O {[%emt 0:00:17]} 8. Qc2 {[%emt 0:00:00]} h5 {[%emt 0:00:04]} 9. Ne2 {[%emt 0:00:01]} Re8 {[%emt 0:00:05]} 10. h3 {[%emt 0:00:07]} Nd7 {[%emt 0:02:31]} 11. g4 {[%emt 0:00:32]} h4 {[%emt 0:02:56]} 12. Be3 {[%emt 0:00:05]} Nf8 {[%emt 0:08:22]} 13. O-O-O {[%emt 0:01:00]} Be6 {[%emt 0:00:04]} 14. c4 {[%emt 0:01:13]} Rc8 {[%emt 0:00:35]} 15. Kb1 {[%emt 0:01:01]} b5 {[%emt 0:00:27]} 16. c5 {[%emt 0:17:54]} Bc7 {[%emt 0:03:25]} 17. Nc3 {[%emt 0:02:31]} b4 {[%emt 0:03:46]} 18. d5 {[%emt 0:05:38]} cxd5 {[%emt 0:05:47]} 19. Nb5 {[%emt 0:00:20]} Bb8 {[%emt 0:04:58]} 20. Nd4 {[%emt 0:04:48]} Bd6 {[%emt 0:10:53]} 21. Ba6 {[%emt 0:07:22]} Rxc5 {[%emt 0:06:44]} 22. Nxe6 {[%emt 0:00:35]} Nxe6 {[%emt 0:00:10]} 23. Bxc5 {[%emt 0:00:18]} Bxc5 {[%emt 0:00:57]} 24. Bb7 {[%emt 0:02:14]} d4 {[%emt 0:01:55]} 25. Rhe1 {[%emt 0:03:01]} Qd6 {[%emt 0:07:04]} 26. Qf5 {[%emt 0:04:25]} Rd8 {[%emt 0:02:13]} 27. Be4 {[%emt 0:04:48]} Ng5 {[%emt 0:01:05]} 28. Bc2 {[%emt 0:01:08]} g6 {[%emt 0:01:05]} 29. Qd3 {[%emt 0:00:08]} Kg7 {[%emt 0:03:44]} 30. Bb3 {[%emt 0:04:52]} Qf4 {[%emt 0:08:09]} 31. Re2 {[%emt 0:03:54]} Qf3 {[%emt 0:05:17]} 32. Qxf3 {[%emt 0:02:37]} Nxf3 {[%emt 0:00:02]} 33. Rc2 {[%emt 0:00:10]} Bb6 {[%emt 0:01:50]} 34. Bc4 {[%emt 0:00:08]} Ng5 {[%emt 0:04:48]} 35. Bf1 {[%emt 0:00:25]} Ne6 {[%emt 0:00:36]} 36. Rc4 {[%emt 0:00:34]} a5 {[%emt 0:01:57]} 37. Rc6 {[%emt 0:00:24]} Rb8 {[%emt 0:00:54]} 38. Kc2 {[%emt 0:00:37]} d3+ {[%emt 0:03:55]} 39. Kb1 {[%emt 0:03:23]} Bxf2 {[%emt 0:01:02]} 40. Rxd3 {[%emt 0:00:21]} a4 {[%emt 0:02:38]} 41. Rd2 {[%emt 0:01:03]} Be3 {[%emt 0:00:50]} 42. Rd7 {[%emt 0:00:16]} Ng5 {[%emt 0:02:40]} 43. Rc4 {[%emt 0:01:31]} a3 {[%emt 0:00:28]} 44. Rd3 {[%emt 0:00:33]} Nf3 {[%emt 0:04:25]} 45. Rxe3 {[%emt 0:02:18]} Nd2+ {[%emt 0:00:01]} 46. Ka1 {[%emt 0:02:59]} Nxf1 {[%emt 0:02:41]} 47. Re1 {[%emt 0:00:22]} Nd2 {[%emt 0:00:01]} 48. Rc2 {[%emt 0:00:41]} Nf3 {[%emt 0:00:29]} 49. Re3 {[%emt 0:00:15]} Nd4 {[%emt 0:00:30]} 50. Rc4 {[%emt 0:00:28]} Rd8 {[%emt 0:00:53]} 51. bxa3 {[%emt 0:00:11]} bxa3 {[%emt 0:00:01]} 52. Rxa3 {[%emt 0:00:10]} f5 {[%emt 0:00:21]} 53. gxf5 {[%emt 0:00:59]} gxf5 {[%emt 0:00:05]} 54. Raa4 {[%emt 0:00:13]} Ne6 {[%emt 0:00:40]} 55. Ra3 {[%emt 0:03:59]} f4 {[%emt 0:00:32]} 56. Rf3 {[%emt 0:00:15]} Kf6 {[%emt 0:00:19]} 57. Kb2 {[%emt 0:01:13]} Rd2+ {[%emt 0:00:54]} 58. Kb1 {[%emt 0:00:33]} Ke5 {[%emt 0:00:45]} 59. a4 {[%emt 0:00:07]} Nd4 {[%emt 0:00:19]} 60. Rf1 {[%emt 0:00:08]} f3 {[%emt 0:01:39]} 61. a5 {[%emt 0:00:11]} Nb3 {[%emt 0:00:27]} 62. Rxf3 {[%emt 0:00:55]} Nxa5 {[%emt 0:00:20]} 63. Rxh4 {[%emt 0:00:12]} f5 {[%emt 0:00:27]} 64. Rhf4 {[%emt 0:00:20]} Nc6 {[%emt 0:00:40]} 65. Rxf5+ {[%emt 0:00:05]} Ke4 {[%emt 0:00:10]} 66. R5f4+ {[%emt 0:00:09]} Ke5 {[%emt 0:00:05]} 67. Kc1 {[%emt 0:00:06]} Rh2 {[%emt 0:00:10]} 68. Rg4 {[%emt 0:00:06]} Rh1+ {[%emt 0:01:19]} 69. Kd2 {[%emt 0:00:07]} Rh2+ {[%emt 0:00:04]} 70. Ke1 {[%emt 0:00:04]} Ne7 {[%emt 0:00:32]} 71. Kf1 {[%emt 0:00:15]} Nd5 {[%emt 0:00:49]} 72. Kg1 {[%emt 0:00:21]} Ra2 {[%emt 0:00:15]} 73. h4 {[%emt 0:00:12]} Rc2 {[%emt 0:00:54]} 74. Rg2 {[%emt 0:00:25]} Rc1+ {[%emt 0:00:33]} 75. Kh2 {[%emt 0:00:02]} Nf4 {[%emt 0:00:25]} 76. Rgf2 {[%emt 0:00:08]} Rc4 {[%emt 0:00:37]} 77. Re3+ {[%emt 0:00:07]} Kf5 {[%emt 0:00:09]} 78. Kg3 {[%emt 0:00:07]} Ra4 {[%emt 0:01:17]} 79. Ref3 1-0

[Event "26th Abu Dhabi Master 2019"]
[Site "Abu Dhabi"]
[Date "2019.08.08"]
[Round "7.56"]
[White "Soham Kamotra"]
[Black "Eynullayev, Atilla"]
[Result "0-1"]
[ECO "A20"]
[WhiteElo "2136"]
[BlackElo "2228"]
[Annotator "NA"]
[PlyCount "80"]
[EventDate "2019.08.02"]
[EventType "swiss"]
[EventCountry "UAE"]
[SourceTitle "playchess.com"]
[Source "ChessBase"]
[SourceQuality "1"]
[TimeControl "5400+30"]

1. c4 e5 2. g3 Nf6 3. Bg2 c6 4. d4 e4 5. d5 Bb4+ 6. Bd2 Qe7 7. Nc3 O-O 8. a3 Bc5 9. e3 cxd5 10. Nxd5 Nxd5 11. cxd5 d6 12. Qa4 Re8 13. Ne2 Nd7 14. Nf4 Nf6 15. Bc3 Bd7 16. Qb3 b5 17. h3 a5 18. O-O h6 19. Kh2 Qd8 20. Qc2 Rc8 21. Qd2 Bb6 22. Rac1 Nh7 23. b3 Ng5 24. Qb2 f6 25. Qe2 Qe7 26. h4 Nf7 27. Kh1 f5 28. Ng6 Qd8 29. Qb2 Ne5 30. Nxe5 dxe5 31. Bxe5 Rxc1 32. Rxc1 Qe7 33. Bc3 f4 34. exf4 e3 35. Re1 e2 36. Bf3 Qc5 37. Be5 Qxf2 38. Qxe2 Qxg3 39. Rc1 Bf2 40. Qf1 Qxh4+ 0-1